bitfinex-derivatives/quotes_ETHF0:USTF0_20250320
["timestamp","ask_amount","ask_price","bid_price","bid_amount"]
[1742508148316,0.00758284,1979.7,1979.6,3.00789]
[1742508158519,3.8556,1980.4,1979.6,4.4971]
[1742508158712,1.3445,1980.3,1980.2,1.01048]
[1742508161110,2.35493,1980.3,1980.2,1.01048]
[1742508162021,1.3445,1980.3,1979.7,0.688]
[1742508162216,3.2078,1980.0,1979.9,1.01058]
[1742508162617,4.21838,1980.0,1979.9,1.01058]
[1742508164722,3.2078,1980.0,1979.9,1.01058]
[1742508165228,4.5372,1980.0,1979.9,1.01058]
[1742508165526,5.54778,1980.0,1979.9,1.01058]
[1742508168142,5.54778,1980.0,1979.9,1.01063]
[1742508174441,1.01068,1979.9,1979.8,1.01065]
[1742508174641,1.01073,1979.8,1979.7,1.0107]
[1742508175142,2.34833,1979.8,1979.7,1.0107]
[1742508175448,1.01073,1979.7,1979.6,5.64595]
[1742508175646,2.34833,1979.7,1979.6,5.64595]
[1742508176447,1.3376,1979.7,1979.6,5.64595]
[1742508176836,1.3376,1979.7,1979.6,2.36695]
[1742508179850,2.34833,1979.7,1979.6,2.36695]
[1742508180547,1.3376,1979.7,1979.6,2.36695]
[1742508181749,2.34833,1979.7,1979.6,2.36695]
[1742508182051,1.3376,1979.7,1979.6,2.36695]
[1742508189952,1.01068,1979.9,1979.8,1.01068]
[1742508190957,6.4778,1980.0,1979.9,1.01063]
[1742508190958,7.48843,1980.0,1979.9,1.01063]
[1742508191854,1.01063,1980.0,1979.9,1.01063]
[1742508192050,4.21843,1980.0,1979.9,1.01063]
[1742508192255,5.63513,1980.0,1979.9,2.33483]
[1742508195566,5.63513,1980.0,1979.9,1.01063]
[1742508199064,7.1245,1980.0,1979.4,2.53478284]
[1742508199254,1.01084,1979.5,1979.4,0.00758284]
[1742508199459,1.01108,1979.1,1979.0,1.01104]
[1742508199664,1.01112,1979.0,1978.9,1.01109]
[1742508199959,1.01124,1978.8,1978.7,1.01122]
[1742508200158,4.21904,1978.8,1978.7,1.01122]
[1742508200664,5.52064,1978.8,1978.7,1.01122]
[1742508200860,1.01124,1978.7,1978.6,11.92943992]
[1742508201064,2.31284,1978.7,1978.6,11.92943992]
[1742508202465,2.31284,1978.7,1978.6,0.00758284]
[1742508204163,2.31284,1978.7,1978.6,1.01888284]
[1742508204360,2.31284,1978.7,1978.6,0.00758284]
[1742508210067,1.01876284,1978.9,1978.6,0.00758284]
[1742508210255,0.00758284,1978.9,1978.8,1.01119]
[1742508211962,0.00758284,1978.9,1978.8,9.41619]
[1742508212163,0.00758284,1978.9,1978.8,1.01119]
[1742508215465,3.2078,1979.2,1979.1,1.01104]
[1742508215671,1.01098,1979.3,1979.2,1.01094]
[1742508215672,1.01095,1979.3,1979.2,1.01094]
[1742508215964,1.01095,1979.3,1979.2,1.70904]
[1742508216165,8.80253,1979.4,1979.3,1.01094]
[1742508216368,7.7916,1979.4,1979.3,1.01094]
[1742508216571,8.80249,1979.4,1979.3,1.01094]
[1742508217370,5.53649,1979.4,1979.3,1.01094]
[1742508218766,5.53649,1979.4,1978.9,6.4758]
[1742508218767,7.0256,1979.4,1978.6,2.53581284]
[1742508218967,1.01119,1978.8,1978.7,2.29424]
[1742508219258,1.01124,1978.7,1978.6,2.30182284]
[1742508219460,2.34504,1978.7,1978.6,0.00758284]
[1742508221576,6.4838,1978.8,1978.7,1.01124]
[1742508221771,3.276,1978.8,1978.7,1.01124]
[1742508221973,3.2078,1978.9,1978.8,1.01119]
[1742508222169,1.01117,1978.9,1978.8,1.01119]
[1742508222669,5.55457,1978.9,1978.8,1.01119]
[1742508223179,2.34677,1978.9,1978.8,1.01119]
[1742508223581,2.34677,1978.9,1978.8,2.35619]
[1742508224076,1.3356,1978.9,1978.8,2.35619]
[1742508224477,3.2078,1979.1,1978.9,1.0111]
[1742508224776,5.55444,1979.1,1979.0,2.35609]
[1742508225079,2.34664,1979.1,1979.0,2.35609]
[1742508229675,2.34664,1979.1,1978.8,2.52797]
[1742508229676,1.01124,1978.7,1978.6,0.00758284]
[1742508229885,4.21904,1978.7,1978.6,0.00758284]
[1742508230276,7.50004,1978.7,1978.6,0.00758284]
[1742508230475,7.50004,1978.7,1978.2,1.01147]
[1742508230476,1.01145,1978.3,1978.2,1.01147]
[1742508231375,1.01155,1978.2,1978.1,1.01152]
[1742508231683,7.12103,1978.2,1978.0,0.00758284]
[1742508231879,1.01155,1978.1,1978.0,0.00758284]
[1742508232080,5.68595,1978.1,1978.0,0.00758284]
[1742508233882,5.68595,1978.1,1977.4,1.0119]
[1742508233883,1.01189,1977.5,1977.4,1.0119]
[1742508234188,1.01191,1977.4,1977.3,1.2944]
[1742508234487,2.33751,1977.4,1977.3,2.30634]
[1742508235884,1.3256,1977.4,1977.3,2.30634]
[1742508236280,3.2078,1977.6,1977.5,1.01186]
[1742508236487,4.31258,1978.1,1978.0,1.0116]
[1742508236785,5.63818,1978.1,1978.0,1.0116]
[1742508237488,5.63818,1978.1,1977.8,1.387]
[1742508237489,1.0116,1978.0,1977.9,1.01162]
[1742508237687,1.2903,1978.0,1977.9,1.01162]
[1742508241386,0.00758284,1978.3,1977.9,9.0359]
[1742508241585,0.00758284,1978.3,1978.2,1.0115]
[1742508242278,0.00758284,1978.3,1978.2,2.3519]
[1742508242482,6.5128,1978.7,1978.6,1.0113]
[1742508242686,3.2078,1978.7,1978.6,1.0113]
[1742508242884,4.53,1978.7,1978.6,1.0113]
[1742508243893,1.3222,1978.7,1978.6,2.3137]
[1742508245184,1.01879284,1978.8,1978.7,1.01124]
[1742508245383,0.00758284,1978.8,1978.7,2.31364]
[1742508245680,2.32907284,1978.8,1978.7,2.31364]
[1742508248392,1.31788284,1978.8,1978.7,2.31364]
[1742508251490,0.00758284,1978.8,1978.7,2.31364]
[1742508255889,2.53559284,1978.8,1978.5,0.00758284]
[1742508256193,1.0113,1978.6,1978.5,0.00758284]
[1742508256599,3.104,1978.6,1978.5,0.00758284]
[1742508257798,3.104,1978.6,1978.5,1.01893284]
[1742508258695,6.3118,1978.6,1978.5,1.01893284]
[1742508259393,6.3118,1978.6,1978.5,0.00758284]
[1742508260791,6.3118,1978.6,1978.5,1.01893284]
[1742508261996,3.104,1978.6,1978.5,1.01893284]
[1742508262794,2.4026,1978.6,1978.5,1.01893284]
[1742508262991,4.5991,1978.6,1978.5,1.01893284]
[1742508263197,5.60721284,1978.8,1978.5,1.01893284]
[1742508263397,5.60721284,1978.8,1978.7,1.01124]
[1742508263594,2.31821284,1978.8,1978.7,1.01124]
[1742508266501,1.30698284,1978.8,1978.7,1.01124]
[1742508266703,0.00758284,1978.8,1978.7,1.68794]
[1742508267200,1.35678284,1978.8,1978.7,1.68794]
[1742508268301,2.36797284,1978.8,1978.7,1.68794]
[1742508276607,1.35678284,1978.8,1978.7,1.68794]
[1742508276802,2.36797284,1978.8,1978.7,1.68794]
[1742508277604,9.68890284,1978.8,1978.5,0.00758284]
[1742508277805,1.0115,1978.3,1978.1,2.7426]
[1742508278012,1.3752,1978.2,1978.1,3.07705]
[1742508278799,2.3867,1978.2,1978.1,3.07705]
[1742508278997,1.01155,1978.1,1978.0,1.01914284]
[1742508279201,8.88155,1978.1,1978.0,0.00758284]
[1742508279405,1.01179,1977.7,1977.6,1.01174]
[1742508279609,2.52916,1977.9,1977.5,3.2078]
[1742508279610,1.01181,1977.6,1977.5,1.01182]
[1742508279811,1.01191,1977.5,1977.4,1.01188]
[1742508280011,2.38511,1977.5,1977.4,1.01188]
[1742508280713,1.01191,1977.4,1977.3,1.01950284]
[1742508280911,2.38511,1977.4,1977.3,1.01950284]
[1742508285216,0.00758284,1977.6,1977.3,3.21538284]
[1742508285411,0.00758284,1977.6,1977.5,1.01186]
[1742508286114,0.00758284,1977.6,1977.5,2.33876]
[1742508286620,1.39,1978.0,1977.9,1.01165]
[1742508288421,6.50638284,1978.1,1978.0,1.0116]
[1742508288617,4.68858284,1978.1,1978.0,1.0116]
[1742508288825,1.39758284,1978.1,1978.0,1.0116]
[1742508290014,2.40913284,1978.1,1978.0,1.0116]
[1742508291617,1.01163,1978.0,1977.9,1.0116]
[1742508291817,1.0118,1977.7,1977.6,1.01177]
[1742508292721,2.3319,1977.7,1977.6,1.01177]
[1742508295127,1.01181,1977.6,1977.5,2.30543]
[1742508295431,2.35531,1977.6,1977.5,2.30543]
[1742508296730,1.3435,1977.6,1977.5,2.30543]
[1742508298331,1.0118,1977.7,1977.6,1.01181]
[1742508298533,3.21538284,1978.1,1977.9,1.0116]
[1742508298723,5.65752,1978.0,1977.9,1.01165]
[1742508299229,2.36252,1978.0,1977.9,1.01165]
[1742508299434,2.3625,1978.0,1977.9,1.01165]
[1742508308528,2.3625,1978.0,1977.4,9.01027]
[1742508308529,1.01191,1977.4,1977.3,1.01948284]
[1742508309128,2.39801,1977.4,1977.3,1.01948284]
[1742508309829,2.52992,1977.3,1976.8,3.2078]
[1742508310039,1.01217,1977.0,1976.9,1.01213]
[1742508310234,1.01217,1976.9,1976.8,4.21998]
[1742508310432,2.39717,1976.9,1976.8,4.21998]
[1742508310629,2.39717,1976.9,1976.7,3.292]
[1742508310630,1.01222,1976.8,1976.7,1.01224]
[1742508310831,2.39722,1976.8,1976.7,1.01224]
[1742508312835,1.385,1976.8,1976.7,1.01224]
[1742508313037,2.39722,1976.8,1976.7,1.01224]
[1742508314234,3.30058284,1976.9,1976.8,1.01222]
[1742508314534,3.2078,1977.5,1977.1,2.53007]
[1742508314732,1.3359,1977.4,1977.3,1.01196]
[1742508317738,3.21538284,1977.5,1977.4,1.01191]
[1742508318537,3.21538284,1977.5,1977.4,2.34331]
[1742508318840,0.00758284,1977.5,1977.4,5.64631]
[1742508320145,4.585,1977.8,1977.7,1.01176]
[1742508320341,4.5364,1978.1,1978.0,1.0116]
[1742508320946,4.31541,1978.4,1978.3,1.01145]
[1742508321155,2.52863,1978.3,1978.0,0.6479]
[1742508321342,1.01158,1978.1,1978.0,1.01155]
[1742508321549,7.8424,1978.2,1977.7,3.2078]
[1742508321740,1.01178,1977.8,1977.7,2.41643]
[1742508321940,1.01182,1977.7,1977.6,1.01178]
[1742508322143,2.34042,1977.7,1977.6,1.01936284]
[1742508323643,1.3286,1977.7,1977.6,1.01936284]
[1742508323843,3.2078,1977.8,1977.6,0.00758284]
[1742508324049,4.5361,1977.8,1977.7,1.01176]
[1742508324250,4.5361,1977.8,1977.7,2.30096]
[1742508324450,5.54783,1977.8,1977.7,2.30096]
[1742508325552,0.6677,1978.1,1977.8,2.52919]
[1742508325850,3.316,1978.1,1978.0,1.01155]
[1742508326055,4.6364,1978.1,1978.0,1.01155]
[1742508326246,4.6364,1978.1,1978.0,2.40765]
[1742508326943,1.3204,1978.1,1978.0,2.40765]
[1742508327845,3.2078,1978.2,1978.1,1.01155]
[1742508328251,4.5282,1978.2,1978.1,1.01155]
[1742508332151,1.3204,1978.2,1978.1,1.01155]
[1742508340557,2.3319,1978.2,1978.1,1.01155]
[1742508341455,5.5397,1978.2,1978.1,1.01155]
[1742508341650,8.8377,1978.2,1978.1,1.01155]
[1742508342252,1.0116,1978.1,1978.0,1.01155]
[1742508342546,2.3825,1978.1,1978.0,1.01155]
[1742508348564,1.01176,1977.8,1977.7,1.01171]
[1742508348754,1.01176,1977.7,1977.6,0.00758284]
[1742508348955,6.31166,1977.7,1977.6,0.00758284]
[1742508356971,6.31166,1977.7,1977.6,1.01939284]
[1742508357773,6.31166,1977.7,1977.6,0.00758284]
[1742508361770,6.30066,1977.7,1977.6,0.00758284]
[1742508363879,6.30066,1977.7,1977.6,1.28878284]
[1742508372478,9.50846,1977.7,1977.6,1.28878284]
[1742508372678,9.50846,1977.7,1977.6,0.00758284]
[1742508373381,9.50846,1977.7,1977.6,1.39898284]
[1742508383687,9.50846,1977.7,1977.6,0.00758284]
[1742508383890,1.01191,1977.4,1977.3,1.3377]
[1742508384192,1.01201,1977.2,1977.1,2.40195]
[1742508384391,7.48381,1977.2,1977.1,1.3899]
[1742508385499,7.48381,1977.2,1977.1,2.7276]
[1742508386497,3.2078,1977.2,1977.1,3.73966]
[1742508386793,4.21968,1977.5,1977.4,1.01191]
[1742508387589,3.2078,1977.5,1977.4,1.01191]
[1742508389798,0.00758284,1977.6,1977.5,1.01186]
[1742508390004,3.2078,1977.9,1977.8,1.0117]
[1742508390295,1.01148,1978.3,1977.9,2.52906]
[1742508390500,3.2078,1978.4,1978.2,1.01145]
[1742508390692,1.01147,1978.3,1978.2,1.01145]
[1742508391499,1.0115,1978.2,1978.1,0.69228284]
[1742508391696,4.2193,1978.2,1978.1,0.69228284]
[1742508391898,4.2193,1978.2,1978.1,1.70379284]
[1742508393092,4.2193,1978.2,1978.1,2.38899284]
[1742508395102,2.40816,1978.3,1978.2,1.0115]
[1742508397400,2.40819,1978.3,1978.2,1.0115]
[1742508400598,1.0115,1978.2,1978.1,0.69278284]
[1742508400805,2.3148,1978.2,1978.1,0.69278284]
[1742508400998,5.5226,1978.2,1978.1,0.00758284]
[1742508401205,8.7846,1978.2,1978.1,0.00758284]
[1742508407706,5.5768,1978.2,1978.1,0.00758284]
[1742508408211,8.7846,1978.2,1978.1,0.00758284]
[1742508411223,5.5226,1978.2,1978.1,1.01913284]
[1742508411410,4.2193,1978.2,1978.1,1.01913284]
[1742508411706,4.2193,1978.2,1978.1,1.71263284]
[1742508411906,5.6148,1978.2,1978.1,0.70108284]
[1742508412711,5.6148,1978.2,1978.1,2.10178284]
[1742508415415,5.6148,1978.2,1978.1,3.11333284]
[1742508415618,5.6148,1978.2,1978.1,2.10178284]
[1742508415816,5.6148,1978.2,1978.1,3.11333284]
[1742508416109,5.6148,1978.2,1978.1,2.10178284]
[1742508423921,5.6148,1978.2,1978.1,0.00758284]
[1742508425320,5.6148,1978.2,1978.1,1.34398284]
[1742508435424,2.407,1978.2,1978.1,1.34398284]
[1742508435727,5.6148,1978.2,1978.1,1.34398284]
[1742508437033,8.8498,1978.2,1978.1,1.34398284]
[1742508440435,5.642,1978.2,1978.1,1.34398284]
[1742508440623,8.8498,1978.2,1978.1,1.34398284]
[1742508443632,8.8498,1978.2,1978.1,0.00758284]
[1742508443840,1.0116,1978.0,1977.9,1.3828]
[1742508444036,4.2194,1978.0,1977.9,1.3828]
[1742508444525,5.5755,1978.0,1977.9,1.3828]
[1742508445534,1.01165,1977.9,1977.8,1.32778284]
[1742508445744,2.36775,1977.9,1977.8,0.00758284]
[1742508464361,2.36775,1977.9,1977.8,0.00758284]
[1742508464955,2.52927,1977.8,1977.4,1.3051]
[1742508465161,4.21966,1977.5,1977.4,2.679]
[1742508465457,7.45566,1977.5,1977.4,2.679]
[1742508465862,7.45566,1977.5,1977.4,2.0279]
[1742508466064,5.65066,1977.5,1977.4,2.0279]
[1742508466356,8.85846,1977.5,1977.4,1.3739]
[1742508466857,1.01191,1977.4,1977.3,0.00758284]
[1742508467058,3.11491,1977.4,1977.3,0.00758284]
[1742508470463,3.11491,1977.4,1977.3,1.36168284]
[1742508473158,1.01196,1977.3,1977.2,0.6488]
[1742508473363,8.76066,1977.3,1977.2,0.6488]
[1742508478860,3.2078,1977.3,1977.2,1.66081]
[1742508479059,2.1414,1977.3,1977.2,1.66081]
[1742508479366,2.1414,1977.3,1977.2,3.04541]
[1742508480367,3.15336,1977.3,1977.2,3.04541]
[1742508492072,2.1414,1977.3,1977.2,3.04541]
[1742508496069,3.2078,1977.7,1977.4,5.05943]
[1742508496277,4.24782,1977.6,1977.5,1.69676]
[1742508496466,5.63272,1977.6,1977.5,3.10286]
[1742508505676,6.29442,1977.6,1977.5,3.10286]
[1742508509172,6.29442,1977.6,1977.5,1.01186]
[1742508519695,6.29442,1977.6,1977.5,2.30706]
[1742508521892,6.29442,1977.6,1977.5,2.96776]
[1742508525893,5.2826,1977.6,1977.2,3.8934]
[1742508526099,1.01196,1977.4,1977.3,2.32051]
[1742508526597,3.06226,1977.4,1977.3,2.32051]
[1742508529001,2.0503,1977.4,1977.3,2.32051]
[1742508529200,3.06221,1977.4,1977.3,2.32051]
[1742508542102,1.01201,1977.2,1977.1,0.00758284]
[1742508542303,4.24701,1977.2,1977.1,0.00758284]
[1742508542709,5.57681,1977.2,1977.1,0.00758284]
[1742508542904,5.57681,1977.2,1976.8,1.384]
[1742508542905,1.01217,1976.9,1976.8,1.384]
[1742508543111,1.01222,1976.8,1976.7,3.10667]
[1742508543412,1.01232,1976.6,1976.5,1.70633]
[1742508543607,1.01232,1976.6,1976.5,3.09033]
[1742508546104,2.34792,1976.6,1976.5,3.09033]
[1742508552219,2.34792,1976.6,1976.5,2.078]
[1742508552421,2.34792,1976.6,1976.5,3.09037]
[1742508553825,1.3356,1976.6,1976.5,3.09037]
[1742508555719,3.236,1976.7,1976.6,1.01232]
[1742508555922,3.236,1976.7,1976.6,2.29332]
[1742508556125,5.59575,1976.8,1976.7,1.01227]
[1742508556126,3.2078,1976.8,1976.7,1.01227]
[1742508556320,3.2078,1976.8,1976.7,2.29327]
[1742508556524,5.59572,1976.8,1976.7,2.29327]
[1742508557325,5.59572,1976.8,1976.7,1.281]
[1742508558026,5.59572,1976.8,1976.7,2.29327]
[1742508559028,5.59572,1976.8,1976.7,1.281]
[1742508559724,5.59572,1976.8,1976.7,2.29327]
[1742508559927,5.59572,1976.8,1976.7,1.281]
[1742508560330,5.59572,1976.8,1976.7,2.29327]
[1742508562428,2.38792,1976.8,1976.7,2.29327]
[1742508562629,5.59572,1976.8,1976.7,2.29327]
[1742508565241,3.2078,1976.8,1976.7,2.29327]
[1742508565531,4.21993,1977.0,1976.9,1.01217]
[1742508565929,5.59843,1977.0,1976.9,1.01217]
[1742508566537,1.01217,1976.9,1976.8,2.3726]
[1742508566730,1.01227,1976.7,1976.6,2.39276]
[1742508567033,1.01227,1976.7,1976.6,3.78936]
[1742508567832,2.29747,1976.7,1976.6,3.78936]
[1742508569835,2.29747,1976.7,1976.6,3.11086]
[1742508576537,1.01237,1976.5,1976.4,0.00505524]
[1742508576839,7.45617,1976.5,1976.4,0.00505524]
[1742508577335,8.82657,1976.5,1976.4,0.00505524]
[1742508579139,1.01258,1976.1,1976.0,2.3207]
[1742508579442,4.24858,1976.1,1976.0,2.3207]
[1742508579741,5.57268,1976.1,1976.0,2.3207]
[1742508582235,6.21538,1976.1,1976.0,2.3207]
[1742508582434,1.01263,1976.0,1975.9,2.32304]
[1742508582738,3.01813,1976.0,1975.9,3.73144]
[1742508585338,2.31933,1976.0,1975.9,3.73144]
[1742508587043,7.46393284,1976.2,1976.1,1.01258]
[1742508587337,8.75443284,1976.2,1976.1,1.01258]
[1742508587547,8.75443284,1976.2,1976.1,2.41808]
[1742508588340,8.75443284,1976.2,1976.1,1.4055]
[1742508588943,1.01258,1976.1,1976.0,1.01259]
[1742508589249,2.41378,1976.1,1976.0,2.29299]
[1742508589743,3.10608,1976.1,1976.0,2.29299]
[1742508590348,3.10608,1976.1,1976.0,1.2804]
[1742508590847,3.10608,1976.1,1976.0,2.29303]
[1742508591249,3.10608,1976.1,1975.9,1.3104]
[1742508591250,1.01263,1976.0,1975.9,0.6402]
[1742508591446,3.04333,1976.0,1975.9,1.9659]
[1742508591837,3.04333,1976.0,1975.9,2.97858]
[1742508592041,3.04333,1976.0,1975.9,2.33838]
[1742508592248,3.04333,1976.0,1975.9,1.3257]
[1742508592450,6.27933,1976.0,1975.9,1.3257]
[1742508592839,6.27933,1976.0,1975.9,2.33838]
[1742508593043,6.27933,1976.0,1975.9,1.3257]
[1742508594658,6.27933,1976.0,1975.7,2.42425]
[1742508594659,1.01273,1975.8,1975.7,2.42425]
[1742508594839,1.01273,1975.8,1975.7,1.3497]
[1742508595143,4.24873,1975.8,1975.7,1.3497]
[1742508596450,7.45653,1975.8,1975.7,1.3497]
[1742508597656,1.01283,1975.6,1975.5,1.01285]
[1742508597950,1.01288,1975.5,1975.4,1.0129]
[1742508598254,1.01293,1975.4,1975.3,2.32504]
[1742508598448,1.01292,1975.5,1975.4,1.0129]
[1742508599049,1.01292,1975.5,1975.4,2.3531]
[1742508599050,2.33842,1975.5,1975.4,2.3531]
[1742508599944,4.24987,1975.6,1975.5,1.01288]
[1742508600144,5.57307,1975.6,1975.5,2.33748]
[1742508600350,7.45753,1975.8,1975.7,1.01278]
[1742508600651,4.24973,1975.8,1975.7,1.01278]
[1742508600852,3.237,1975.8,1975.7,1.01278]
[1742508601046,3.237,1975.8,1975.7,3.02178]
[1742508602152,4.24973,1975.8,1975.7,3.02178]
[1742508602653,1.01273,1975.8,1975.7,3.02178]
[1742508604756,1.01273,1975.8,1975.7,1.3246]
[1742508604959,1.65593,1975.8,1975.7,2.33738]
[1742508605955,3.03573,1975.8,1975.7,2.33738]
[1742508607152,3.03573,1975.8,1975.7,1.3246]
[1742508607559,6.27273,1975.8,1975.7,1.3246]
[1742508608352,1.01283,1975.6,1975.5,1.68314]
[1742508608560,1.01283,1975.6,1975.5,2.33634]
[1742508608962,1.01288,1975.5,1975.4,1.01289]
[1742508609358,1.01293,1975.4,1975.3,2.35936]
[1742508609558,2.34383,1975.4,1975.3,2.35936]
[1742508613561,2.34383,1975.4,1975.3,3.72906]
[1742508613756,1.3309,1975.4,1975.3,3.72906]
[1742508615762,1.01293,1975.5,1975.4,1.01293]
[1742508615964,2.30513,1975.5,1975.4,2.29983]
[1742508618352,7.07541,1975.7,1975.4,2.29983]
[1742508618353,3.8614,1975.7,1975.4,1.2869]
[1742508618564,1.352,1975.7,1975.6,1.01283]
[1742508619064,1.352,1975.7,1975.6,1.68113]
[1742508620459,2.36478,1975.7,1975.6,1.68113]
[1742508621155,1.352,1975.7,1975.6,1.68113]
[1742508626269,3.237,1975.9,1975.7,1.01273]
[1742508626573,1.3391,1975.8,1975.7,1.69803]
[1742508626778,2.35183,1975.8,1975.7,1.69803]
[1742508635375,1.3391,1975.8,1975.7,1.69803]
[1742508635566,3.8689,1976.0,1975.9,1.01268]
[1742508635771,3.8689,1976.0,1975.7,3.21714]
[1742508635772,1.01273,1975.9,1975.8,1.01269]
[1742508636870,2.43063,1975.9,1975.8,1.01269]
[1742508647887,1.4179,1975.9,1975.5,2.53217]
[1742508648091,1.01282,1975.7,1975.6,2.37658]
[1742508648495,3.76642,1975.7,1975.6,2.37658]
[1742508663794,2.41752,1975.7,1975.6,2.37658]
[1742508664396,1.4047,1975.7,1975.6,2.37658]
[1742508667402,2.41748,1975.7,1975.6,2.37658]
[1742508667698,3.11248,1975.7,1975.6,2.37658]
[1742508667900,3.79488,1975.7,1975.6,2.37658]
[1742508668106,3.79488,1975.7,1975.6,1.3638]
[1742508668304,1.01283,1975.6,1975.5,1.01287]
[1742508668509,2.41803,1975.6,1975.5,2.39947]
[1742508669203,7.849,1975.6,1975.2,5.74036]
[1742508669406,1.01298,1975.4,1975.3,1.01293]
[1742508669609,1.01298,1975.4,1975.3,3.05683]
[1742508669908,2.41818,1975.4,1975.3,3.05683]
[1742508673606,3.12238,1975.4,1975.3,3.05683]
[1742508673911,1.4052,1975.4,1975.3,3.05683]
[1742508674109,8.16088,1975.6,1975.5,1.01288]
[1742508674606,8.16088,1975.6,1975.5,1.68678]
[1742508675401,9.55298,1975.6,1975.5,3.10858]
[1742508683913,9.55298,1975.6,1975.5,2.43468]
[1742508688125,6.34518,1975.6,1975.5,2.43468]
[1742508688823,9.55298,1975.6,1975.5,2.43468]
[1742508691912,8.84878,1975.6,1975.5,2.43468]
[1742508692835,5.64098,1975.6,1975.5,2.43468]
[1742508693723,2.40498,1975.6,1975.5,2.43468]
[1742508693922,3.2078,1975.8,1975.5,3.95401]
[1742508694120,1.2938,1975.8,1975.7,1.01278]
[1742508694427,7.45645,1976.0,1975.9,1.01268]
[1742508694620,8.80615,1976.0,1975.9,1.01268]
[1742508695225,8.80615,1976.0,1975.9,2.34908]
[1742508695829,8.80613,1976.0,1975.9,2.34908]
[1742508696837,5.57013,1976.0,1975.9,2.34908]
[1742508697034,1.3497,1976.0,1975.9,2.34908]
[1742508697340,7.46393284,1976.2,1976.1,1.01258]
[1742508698738,4.22793284,1976.2,1976.1,1.01258]
[1742508699539,5.64923284,1976.2,1976.1,1.01258]
[1742508702439,4.63668284,1976.2,1976.1,1.01258]
[1742508703037,0.00758284,1976.2,1976.1,1.01258]
[1742508703337,0.00758284,1976.2,1976.1,2.42818]
[1742508709345,1.39788284,1976.2,1976.1,2.42818]
[1742508710646,0.00758284,1976.2,1976.1,4.92818]
[1742508710846,3.2078,1976.5,1976.4,1.01242]
[1742508711149,4.5157,1976.5,1976.4,1.01242]
[1742508711346,1.3079,1976.5,1976.4,1.01242]
[1742508713245,1.3079,1976.5,1976.4,2.41862]
[1742508717447,0.00758284,1976.6,1976.5,1.01237]
[1742508717753,3.2078,1976.9,1976.8,1.01222]
[1742508718147,3.2078,1976.9,1976.8,1.71122]
[1742508719150,4.5212,1976.9,1976.8,3.04982]
[1742508720856,4.5212,1976.9,1976.8,3.70722]
[1742508727758,5.53337,1976.9,1976.8,2.35082]
[1742508728058,5.53337,1976.9,1976.8,1.01222]
[1742508730350,5.53337,1976.9,1976.8,2.29432]
[1742508731554,1.01227,1976.8,1976.7,1.01223]
[1742508731757,2.31287,1976.8,1976.7,1.01223]
[1742508732746,1.01232,1976.7,1976.6,1.01228]
[1742508732951,2.53087,1976.6,1976.3,6.43004284]
[1742508733149,2.31302,1976.5,1976.4,1.01238]
[1742508733356,2.31302,1976.5,1976.4,2.36498]
[1742508737061,2.31302,1976.5,1976.4,1.01238]
[1742508737657,5.52082,1976.5,1976.4,1.01238]
[1742508738968,1.01242,1976.4,1976.3,2.41081284]
[1742508739167,3.66132,1976.4,1976.3,2.41081284]
[1742508741176,2.29612,1976.4,1976.3,2.41081284]
[1742508742379,1.2837,1976.4,1976.3,2.41081284]
[1742508743187,2.29612,1976.4,1976.3,2.41081284]
[1742508743686,2.99262,1976.4,1976.3,2.41081284]
[1742508745189,1.9802,1976.4,1976.3,2.41081284]
[1742508745490,1.2837,1976.4,1976.3,2.41081284]
[1742508746188,2.29612,1976.4,1976.3,2.41081284]
[1742508750779,1.2837,1976.4,1976.3,2.41081284]
[1742508750978,3.2078,1976.5,1976.4,1.01242]
[1742508751184,3.2078,1976.5,1976.4,2.38842]
[1742508752396,4.4904,1976.5,1976.4,2.38842]
[1742508753993,1.2826,1976.5,1976.4,2.38842]
[1742508759795,3.2078,1976.7,1976.6,1.01232]
[1742508760395,1.3232,1976.8,1976.7,1.01227]
[1742508763403,2.33542,1976.8,1976.7,1.01227]
[1742508767499,1.3232,1976.8,1976.7,1.01227]
[1742508768207,2.33542,1976.8,1976.7,1.01227]
[1742508768408,1.01232,1976.7,1976.6,1.01228]
[1742508768599,3.70162,1976.7,1976.6,1.01228]
[1742508770307,3.70162,1976.7,1976.6,2.34978]
[1742508773008,3.70162,1976.7,1976.6,1.01228]
[1742508781720,1.01237,1976.6,1976.5,1.01232]
[1742508781915,1.01237,1976.6,1976.4,1.01238]
[1742508781916,1.01242,1976.5,1976.4,1.01238]
[1742508782415,2.32242,1976.5,1976.4,1.01238]
[1742508782620,2.32242,1976.5,1976.4,2.43008]
[1742508784325,2.32242,1976.5,1976.4,3.79488]
[1742508784712,1.31,1976.5,1976.4,3.79488]
[1742508786225,2.32237,1976.5,1976.4,3.79488]
[1742508786523,6.4408,1976.6,1976.5,1.01237]
[1742508786727,7.8589,1976.6,1976.5,2.41147]
[1742508787125,4.91516,1976.8,1976.7,1.01227]
[1742508787425,3.2078,1976.8,1976.7,1.01227]
[1742508787626,5.66331,1976.9,1976.8,1.01222]
[1742508788225,1.4181,1976.9,1976.8,2.41132]
[1742508793425,1.01232,1976.7,1976.6,1.01227]
[1742508793631,1.01232,1976.7,1976.5,3.2078]
[1742508793632,1.01237,1976.6,1976.5,1.01233]
[1742508793832,5.59827,1976.6,1976.5,1.01233]
[1742508797032,7.11676,1976.6,1976.3,0.00758284]
[1742508797228,4.22022,1976.4,1976.3,1.02003284]
[1742508797836,6.23332,1976.4,1976.3,1.02003284]
[1742508798142,9.46532,1976.4,1976.3,1.02003284]